[Event "Early-Titled-Tuesday-Blitz-January-16-2024"]
[Site "Chess.com"]
[Date "2024.01.16"]
[Round "8"]
[White "otrov-11"]
[Black "Witik"]
[Result "1-0"]
[WhiteElo "2511"]
[BlackElo "2757"]
[TimeControl "180+1"]
[EndTime "9:32:42 PST"]
[Termination "otrov-11 won by resignation"]

1. d4 {[%clk 0:03:00.9]} 1... d5 {[%clk 0:02:57.6]} 2. c4 {[%clk 0:03:01.4]}
2... c6 {[%clk 0:02:57.2]} 3. Nf3 {[%clk 0:03:01.5]} 3... Nf6 {[%clk 0:02:57.6]}
4. g3 {[%clk 0:03:01.6]} 4... g6 {[%clk 0:02:55.2]} 5. Bg2 {[%clk 0:03:01.8]}
5... Bg7 {[%clk 0:02:55.7]} 6. O-O {[%clk 0:03:02]} 6... O-O {[%clk 0:02:55.8]}
7. Qb3 {[%clk 0:03:02.7]} 7... Qb6 {[%clk 0:02:54.9]} 8. c5 {[%clk 0:03:00.3]}
8... Qa6 {[%clk 0:02:52.1]} 9. Nc3 {[%clk 0:02:59.7]} 9... b6 {[%clk 0:02:51]}
10. cxb6 {[%clk 0:02:56.6]} 10... axb6 {[%clk 0:02:51.3]} 11. Re1 {[%clk
0:02:56.2]} 11... Bf5 {[%clk 0:02:43.8]} 12. Bf4 {[%clk 0:02:50.7]} 12... Nbd7
{[%clk 0:02:25.5]} 13. Ne5 {[%clk 0:02:49.4]} 13... Nxe5 {[%clk 0:02:18.4]} 14.
Bxe5 {[%clk 0:02:50.3]} 14... Rfd8 {[%clk 0:02:05]} 15. Rac1 {[%clk 0:02:41.2]}
15... Be6 {[%clk 0:01:54.6]} 16. Qc2 {[%clk 0:02:36]} 16... c5 {[%clk
0:01:46.8]} 17. e4 {[%clk 0:02:26]} 17... cxd4 {[%clk 0:01:39.7]} 18. Bxd4
{[%clk 0:02:26.9]} 18... Rac8 {[%clk 0:01:38.7]} 19. exd5 {[%clk 0:02:20.5]}
19... Bxd5 {[%clk 0:01:05.4]} 20. Bxf6 {[%clk 0:01:55.8]} 20... Bxf6 {[%clk
0:01:04.7]} 21. Bxd5 {[%clk 0:01:56.4]} 21... Rxd5 {[%clk 0:01:03.1]} 22. Nxd5
{[%clk 0:01:56.8]} 22... Rxc2 {[%clk 0:01:02.8]} 23. Rxc2 {[%clk 0:01:57.7]}
23... Qxa2 {[%clk 0:00:57.8]} 24. Nf4 {[%clk 0:01:41.9]} 24... Kg7 {[%clk
0:00:51.8]} 25. Rce2 {[%clk 0:01:39.5]} 25... h5 {[%clk 0:00:48.6]} 26. h4
{[%clk 0:01:39.1]} 26... Qb3 {[%clk 0:00:46.7]} 27. Rd2 {[%clk 0:01:31.5]} 27...
Qf3 {[%clk 0:00:26.8]} 28. Re3 {[%clk 0:01:28.6]} 28... Qc6 {[%clk 0:00:25.6]}
29. Re1 {[%clk 0:01:08.9]} 29... e6 {[%clk 0:00:23.5]} 30. Rde2 {[%clk
0:00:35.9]} 30... Qf3 {[%clk 0:00:19.3]} 31. Rd2 {[%clk 0:00:35.8]} 31... g5
{[%clk 0:00:13.9]} 32. hxg5 {[%clk 0:00:33.5]} 32... Bxg5 {[%clk 0:00:14.2]} 33.
Re3 {[%clk 0:00:34.2]} 33... Qg4 {[%clk 0:00:14.6]} 34. Rd4 {[%clk 0:00:31.2]}
34... Kh7 {[%clk 0:00:08.6]} 35. Nxe6 {[%clk 0:00:27.7]} 35... Bxe3 {[%clk
0:00:04.1]} 36. Rxg4 {[%clk 0:00:26.3]} 36... hxg4 {[%clk 0:00:03.8]} 37. Nd8
{[%clk 0:00:23]} 37... Kg6 {[%clk 0:00:03.8]} 38. fxe3 {[%clk 0:00:22.6]} 38...
f6 {[%clk 0:00:03.9]} 39. Kf2 {[%clk 0:00:22.7]} 39... Kf5 {[%clk 0:00:04.4]}
40. Nc6 {[%clk 0:00:21.5]} 40... Ke4 {[%clk 0:00:04.8]} 41. Ke2 {[%clk
0:00:20.1]} 41... Kd5 {[%clk 0:00:04.6]} 42. Nd4 {[%clk 0:00:20.2]} 42... Kc4
{[%clk 0:00:05]} 43. Kd2 {[%clk 0:00:20.7]} 43... b5 {[%clk 0:00:05.1]} 1-0

[Event "Early-Titled-Tuesday-Blitz-January-16-2024"]
[Site "Chess.com"]
[Date "2024.01.16"]
[Round "8"]
[White "santosalberto1987"]
[Black "GMJustin"]
[Result "1-0"]
[WhiteElo "2503"]
[BlackElo "2319"]
[TimeControl "180+1"]
[EndTime "9:32:42 PST"]
[Termination "santosalberto1987 won on time"]

1. e4 {[%clk 0:02:55.8]} 1... e5 {[%clk 0:02:47.1]} 2. Nf3 {[%clk 0:02:55.6]}
2... Nc6 {[%clk 0:02:46.7]} 3. Bc4 {[%clk 0:02:55.5]} 3... Nf6 {[%clk
0:02:46.7]} 4. d3 {[%clk 0:02:55.4]} 4... Be7 {[%clk 0:02:42.3]} 5. O-O {[%clk
0:02:55.1]} 5... O-O {[%clk 0:02:36.8]} 6. c3 {[%clk 0:02:54.6]} 6... d6 {[%clk
0:02:30.2]} 7. Bb3 {[%clk 0:02:54]} 7... Na5 {[%clk 0:02:27.6]} 8. Bc2 {[%clk
0:02:53.6]} 8... c5 {[%clk 0:02:27.4]} 9. h3 {[%clk 0:02:51.2]} 9... Nc6 {[%clk
0:02:21.7]} 10. d4 {[%clk 0:02:49.7]} 10... cxd4 {[%clk 0:02:04]} 11. cxd4
{[%clk 0:02:50.6]} 11... d5 {[%clk 0:01:57.3]} 12. exd5 {[%clk 0:02:45]} 12...
Nxd4 {[%clk 0:01:50.8]} 13. Nxd4 {[%clk 0:02:24.1]} 13... exd4 {[%clk
0:01:51.7]} 14. Qxd4 {[%clk 0:02:22.6]} 14... Qxd5 {[%clk 0:01:50.2]} 15. Qh4
{[%clk 0:02:16.2]} 15... Bf5 {[%clk 0:01:36.8]} 16. Nc3 {[%clk 0:02:12.6]} 16...
Qa5 {[%clk 0:01:24.2]} 17. Qg5 {[%clk 0:02:08.4]} 17... g6 {[%clk 0:00:49.3]}
18. Re1 {[%clk 0:02:08]} 18... Nd5 {[%clk 0:00:38.2]} 19. Rxe7 {[%clk 0:01:18]}
19... Nxe7 {[%clk 0:00:39.1]} 20. g4 {[%clk 0:00:53.1]} 20... f6 {[%clk
0:00:15.4]} 21. Bb3+ {[%clk 0:00:52.6]} 21... Kh8 {[%clk 0:00:14.8]} 22. Qe3
{[%clk 0:00:48.4]} 22... Rae8 {[%clk 0:00:14.1]} 23. gxf5 {[%clk 0:00:47.6]}
23... Nxf5 {[%clk 0:00:14.2]} 24. Qd2 {[%clk 0:00:36.9]} 24... Nh4 {[%clk
0:00:14.1]} 25. Bd5 {[%clk 0:00:33]} 25... Re5 {[%clk 0:00:10.6]} 26. f4 {[%clk
0:00:25.6]} 26... Re7 {[%clk 0:00:06.5]} 27. Qd3 {[%clk 0:00:17.5]} 27... Qc5+
{[%clk 0:00:04]} 28. Kf1 {[%clk 0:00:13.8]} 28... Rfe8 {[%clk 0:00:03.7]} 29.
Bd2 {[%clk 0:00:13.9]} 29... Nf5 {[%clk 0:00:03.4]} 30. Re1 {[%clk 0:00:12.3]}
30... Rxe1+ {[%clk 0:00:02.4]} 31. Bxe1 {[%clk 0:00:12.4]} 31... Ne3+ {[%clk
0:00:02.1]} 32. Ke2 {[%clk 0:00:10.9]} 32... Nxd5+ {[%clk 0:00:02.2]} 33. Kd1
{[%clk 0:00:11.2]} 33... Nxc3+ {[%clk 0:00:02]} 34. Bxc3 {[%clk 0:00:12.1]}
34... Qf5 {[%clk 0:00:00.7]} 35. Bd4 {[%clk 0:00:09.6]} 1-0

[Event "Early-Titled-Tuesday-Blitz-January-16-2024"]
[Site "Chess.com"]
[Date "2024.01.16"]
[Round "8"]
[White "crazy_m_attack"]
[Black "JimDiGrease"]
[Result "0-1"]
[WhiteElo "2480"]
[BlackElo "2972"]
[TimeControl "180+1"]
[EndTime "9:32:45 PST"]
[Termination "JimDiGrease won by resignation"]

1. e4 {[%clk 0:03:00.9]} 1... c5 {[%clk 0:02:24.5]} 2. Nf3 {[%clk 0:03:00.1]}
2... e6 {[%clk 0:02:25]} 3. d4 {[%clk 0:03:00.5]} 3... cxd4 {[%clk 0:02:25.9]}
4. Nxd4 {[%clk 0:03:01.3]} 4... Nf6 {[%clk 0:02:26.7]} 5. Nc3 {[%clk 0:03:01.6]}
5... Nc6 {[%clk 0:02:27.5]} 6. Ndb5 {[%clk 0:03:01]} 6... Bc5 {[%clk 0:02:27.5]}
7. Bf4 {[%clk 0:03:01.1]} 7... O-O {[%clk 0:02:27.7]} 8. Bc7 {[%clk 0:03:01.4]}
8... Qe7 {[%clk 0:02:28.2]} 9. Bd6 {[%clk 0:03:02.1]} 9... Bxd6 {[%clk
0:02:28.9]} 10. Qxd6 {[%clk 0:03:02.8]} 10... Qd8 {[%clk 0:02:29.7]} 11. Nc7
{[%clk 0:03:03.5]} 11... Rb8 {[%clk 0:02:30]} 12. Be2 {[%clk 0:03:04.2]} 12...
b5 {[%clk 0:02:30.6]} 13. e5 {[%clk 0:03:04.5]} 13... Ne8 {[%clk 0:02:31.1]} 14.
Nxe8 {[%clk 0:03:04.8]} 14... b4 {[%clk 0:02:31.1]} 15. Ne4 {[%clk 0:02:24.1]}
15... Rxe8 {[%clk 0:02:31.3]} 16. O-O {[%clk 0:02:20.1]} 16... Rf8 {[%clk
0:02:31.7]} 17. f4 {[%clk 0:02:16.2]} 17... Rb6 {[%clk 0:02:28.8]} 18. Qc5
{[%clk 0:02:13]} 18... Ne7 {[%clk 0:02:02.1]} 19. Nd6 {[%clk 0:02:06.9]} 19...
Nd5 {[%clk 0:01:56.2]} 20. Bf3 {[%clk 0:02:03.2]} 20... Nxf4 {[%clk 0:01:39]}
21. Be4 {[%clk 0:01:59.4]} 21... Ng6 {[%clk 0:01:24.7]} 22. Bxg6 {[%clk
0:01:59.4]} 22... hxg6 {[%clk 0:01:25.6]} 23. Rf2 {[%clk 0:01:57.6]} 23... Bb7
{[%clk 0:01:14.2]} 24. Raf1 {[%clk 0:01:52.6]} 24... Qg5 {[%clk 0:01:05.1]} 25.
Nxb7 {[%clk 0:01:18.8]} 25... Rxb7 {[%clk 0:01:02.1]} 26. Rxf7 {[%clk
0:01:16.9]} 26... Rxf7 {[%clk 0:00:48.5]} 27. Qc8+ {[%clk 0:01:16.5]} 27... Kh7
{[%clk 0:00:48.7]} 28. Rxf7 {[%clk 0:01:14.5]} 28... Rb5 {[%clk 0:00:34.8]} 29.
Rf3 {[%clk 0:00:59]} 29... Qc1+ {[%clk 0:00:25.2]} 30. Kf2 {[%clk 0:00:58]}
30... Qd2+ {[%clk 0:00:25.2]} 31. Kf1 {[%clk 0:00:57.6]} 31... Rxe5 {[%clk
0:00:24.5]} 32. Rh3+ {[%clk 0:00:56.2]} 32... Rh5 {[%clk 0:00:24.9]} 33. Rxh5+
{[%clk 0:00:52.9]} 33... gxh5 {[%clk 0:00:25.8]} 34. Qc5 {[%clk 0:00:48.7]}
34... d5 {[%clk 0:00:25.7]} 35. h3 {[%clk 0:00:40]} 35... Qc1+ {[%clk
0:00:24.6]} 36. Kf2 {[%clk 0:00:40.4]} 36... Qxb2 {[%clk 0:00:25.2]} 37. Kg1
{[%clk 0:00:36.1]} 37... Qc3 {[%clk 0:00:23.6]} 38. Qf2 {[%clk 0:00:25.8]} 38...
d4 {[%clk 0:00:20.8]} 39. Qe2 {[%clk 0:00:20.6]} 39... Qe3+ {[%clk 0:00:19.7]}
40. Qxe3 {[%clk 0:00:19.2]} 40... dxe3 {[%clk 0:00:20.6]} 41. Kf1 {[%clk
0:00:19.8]} 41... Kg6 {[%clk 0:00:21.3]} 42. Ke2 {[%clk 0:00:20.3]} 42... Kf5
{[%clk 0:00:21.8]} 43. Kxe3 {[%clk 0:00:21.2]} 43... Ke5 {[%clk 0:00:19.7]} 44.
h4 {[%clk 0:00:19.4]} 44... Kd5 {[%clk 0:00:19.2]} 45. Kf4 {[%clk 0:00:19.3]}
45... e5+ {[%clk 0:00:19.1]} 46. Ke3 {[%clk 0:00:16]} 46... g6 {[%clk
0:00:18.5]} 47. g3 {[%clk 0:00:15.5]} 47... e4 {[%clk 0:00:19.1]} 48. Kf4 {[%clk
0:00:15.4]} 48... Kd4 {[%clk 0:00:19.6]} 0-1

[Event "Early-Titled-Tuesday-Blitz-January-16-2024"]
[Site "Chess.com"]
[Date "2024.01.16"]
[Round "8"]
[White "Makswolf200817"]
[Black "BelyakovBogdan"]
[Result "1-0"]
[WhiteElo "2667"]
[BlackElo "2493"]
[TimeControl "180+1"]
[EndTime "9:32:45 PST"]
[Termination "Makswolf200817 won by checkmate"]

1. d4 {[%clk 0:03:00.9]} 1... Nf6 {[%clk 0:02:58]} 2. c4 {[%clk 0:03:01.1]} 2...
g6 {[%clk 0:02:58]} 3. g3 {[%clk 0:03:01.5]} 3... Bg7 {[%clk 0:02:58.2]} 4. Bg2
{[%clk 0:03:02.2]} 4... O-O {[%clk 0:02:58.7]} 5. Nc3 {[%clk 0:03:03]} 5... d6
{[%clk 0:02:58.7]} 6. Nf3 {[%clk 0:03:03.8]} 6... Nc6 {[%clk 0:02:58.9]} 7. O-O
{[%clk 0:03:04.3]} 7... a6 {[%clk 0:02:59.2]} 8. d5 {[%clk 0:03:05]} 8... Na5
{[%clk 0:02:59.2]} 9. b3 {[%clk 0:03:05.8]} 9... c5 {[%clk 0:02:58]} 10. dxc6
{[%clk 0:03:06.7]} 10... Nxc6 {[%clk 0:02:57.8]} 11. Bg5 {[%clk 0:03:07.4]}
11... h6 {[%clk 0:02:57.2]} 12. Be3 {[%clk 0:03:07.2]} 12... Be6 {[%clk
0:02:30.9]} 13. Ne1 {[%clk 0:03:00.5]} 13... Rb8 {[%clk 0:02:17.1]} 14. Rc1
{[%clk 0:02:55.9]} 14... Ne5 {[%clk 0:02:15.9]} 15. f4 {[%clk 0:02:41.5]} 15...
Neg4 {[%clk 0:02:13.1]} 16. Ba7 {[%clk 0:02:41.7]} 16... Ra8 {[%clk 0:02:12.1]}
17. Bd4 {[%clk 0:02:42.3]} 17... Nd7 {[%clk 0:02:09]} 18. Bxb7 {[%clk
0:02:31.2]} 18... Qa5 {[%clk 0:01:58.8]} 19. Bxa8 {[%clk 0:02:25.5]} 19... Rxa8
{[%clk 0:01:59.7]} 20. Nf3 {[%clk 0:02:18.5]} 20... Qh5 {[%clk 0:01:56.8]} 21.
Bxg7 {[%clk 0:02:16]} 21... Kxg7 {[%clk 0:01:56.8]} 22. Qd4+ {[%clk 0:02:16]}
22... Kh7 {[%clk 0:01:54.8]} 23. Nd5 {[%clk 0:02:14.7]} 23... Bxd5 {[%clk
0:01:31.8]} 24. cxd5 {[%clk 0:02:10.3]} 24... Ndf6 {[%clk 0:01:22.8]} 25. e4
{[%clk 0:02:10.2]} 25... a5 {[%clk 0:01:19.5]} 26. Kg2 {[%clk 0:02:08.7]} 26...
a4 {[%clk 0:01:18.5]} 27. b4 {[%clk 0:02:06.5]} 27... a3 {[%clk 0:01:07.9]} 28.
h3 {[%clk 0:02:03.8]} 28... Ra4 {[%clk 0:01:08.2]} 29. hxg4 {[%clk 0:02:01.1]}
29... Qxg4 {[%clk 0:01:09.1]} 30. Nh2 {[%clk 0:01:38.2]} 30... Qe2+ {[%clk
0:01:08.7]} 31. Rf2 {[%clk 0:01:38.7]} 31... Qb5 {[%clk 0:01:07.2]} 32. Qc4
{[%clk 0:01:28.4]} 32... Qb6 {[%clk 0:01:02.7]} 33. Rb1 {[%clk 0:01:17.4]} 33...
Qe3 {[%clk 0:00:59.6]} 34. Re2 {[%clk 0:01:14]} 34... Qb6 {[%clk 0:00:52.7]} 35.
e5 {[%clk 0:01:12.4]} 35... Nh5 {[%clk 0:00:52.3]} 36. exd6 {[%clk 0:01:09.1]}
36... exd6 {[%clk 0:00:52.3]} 37. Qc6 {[%clk 0:01:06]} 37... Qa7 {[%clk
0:00:49.4]} 38. Ng4 {[%clk 0:01:03.7]} 38... Ra6 {[%clk 0:00:47.4]} 39. Qe8
{[%clk 0:01:02.6]} 39... Qb7 {[%clk 0:00:43.8]} 40. Qf8 {[%clk 0:00:58]} 40...
Ra8 {[%clk 0:00:31.7]} 41. Qxh6+ {[%clk 0:00:56.2]} 41... Kg8 {[%clk 0:00:31.9]}
42. Qg5 {[%clk 0:00:52.5]} 42... Qb5 {[%clk 0:00:29.8]} 43. Rbe1 {[%clk
0:00:51.1]} 43... Rf8 {[%clk 0:00:29.5]} 44. Nf6+ {[%clk 0:00:43.8]} 44... Nxf6
{[%clk 0:00:27.6]} 45. Qxf6 {[%clk 0:00:44.7]} 45... Qxd5+ {[%clk 0:00:27.8]}
46. Kh2 {[%clk 0:00:44.7]} 46... Qh5+ {[%clk 0:00:26.3]} 47. Qh4 {[%clk
0:00:44.6]} 47... Qd5 {[%clk 0:00:26.8]} 48. Re8 {[%clk 0:00:40.7]} 48... Qxa2+
{[%clk 0:00:25.3]} 49. Kh3 {[%clk 0:00:40.4]} 49... f6 {[%clk 0:00:12.2]} 50.
Rxf8+ {[%clk 0:00:38.2]} 50... Kxf8 {[%clk 0:00:13.1]} 51. Qh8+ {[%clk
0:00:38.9]} 51... Kf7 {[%clk 0:00:12]} 52. Qe8+ {[%clk 0:00:39.6]} 52... Kg7
{[%clk 0:00:12.3]} 53. Re7+ {[%clk 0:00:40.4]} 53... Kh6 {[%clk 0:00:12.5]} 54.
Qh8# {[%clk 0:00:41]} 1-0

[Event "Early-Titled-Tuesday-Blitz-January-16-2024"]
[Site "Chess.com"]
[Date "2024.01.16"]
[Round "8"]
[White "FM_VS99"]
[Black "Malikova777"]
[Result "1-0"]
[WhiteElo "2505"]
[BlackElo "2297"]
[TimeControl "180+1"]
[EndTime "9:32:45 PST"]
[Termination "FM_VS99 won on time"]

1. Nf3 {[%clk 0:03:00.9]} 1... Nf6 {[%clk 0:02:59]} 2. g3 {[%clk 0:03:00.7]}
2... g6 {[%clk 0:02:59.2]} 3. Bg2 {[%clk 0:03:01.2]} 3... Bg7 {[%clk 0:02:59.1]}
4. O-O {[%clk 0:03:01.8]} 4... O-O {[%clk 0:02:59.5]} 5. c4 {[%clk 0:03:02.5]}
5... c5 {[%clk 0:02:59.2]} 6. d4 {[%clk 0:03:01.5]} 6... cxd4 {[%clk 0:02:59.5]}
7. Nxd4 {[%clk 0:03:01]} 7... Nc6 {[%clk 0:03:00.4]} 8. Nc3 {[%clk 0:03:01.6]}
8... a6 {[%clk 0:02:52.6]} 9. b3 {[%clk 0:02:57.9]} 9... Nxd4 {[%clk 0:02:50.5]}
10. Qxd4 {[%clk 0:02:57.7]} 10... d6 {[%clk 0:02:51.4]} 11. Bb2 {[%clk
0:02:55.2]} 11... Nd7 {[%clk 0:02:42.5]} 12. Qd2 {[%clk 0:02:50.1]} 12... Nc5
{[%clk 0:02:30.7]} 13. b4 {[%clk 0:02:40.5]} 13... Ne6 {[%clk 0:02:23.7]} 14.
Rac1 {[%clk 0:02:40.1]} 14... Rb8 {[%clk 0:02:21.7]} 15. a3 {[%clk 0:02:33.8]}
15... b5 {[%clk 0:02:16.6]} 16. cxb5 {[%clk 0:02:30.8]} 16... axb5 {[%clk
0:02:17.5]} 17. Nd5 {[%clk 0:02:24.9]} 17... Bb7 {[%clk 0:02:11.1]} 18. h4
{[%clk 0:02:17.4]} 18... Bxb2 {[%clk 0:02:08.5]} 19. Qxb2 {[%clk 0:02:17]} 19...
Ng7 {[%clk 0:02:08.8]} 20. e4 {[%clk 0:02:08.1]} 20... f5 {[%clk 0:01:50.2]} 21.
Rfe1 {[%clk 0:01:59.4]} 21... fxe4 {[%clk 0:01:43.1]} 22. Bxe4 {[%clk
0:01:57.8]} 22... e6 {[%clk 0:01:39.5]} 23. Nf4 {[%clk 0:01:47.8]} 23... Bxe4
{[%clk 0:01:33]} 24. Rxe4 {[%clk 0:01:48.7]} 24... e5 {[%clk 0:01:23.4]} 25. Nd5
{[%clk 0:01:35]} 25... Kh8 {[%clk 0:01:15.9]} 26. Qd2 {[%clk 0:01:05.5]} 26...
Rc8 {[%clk 0:00:48.9]} 27. Rd1 {[%clk 0:00:39.8]} 27... Ne6 {[%clk 0:00:31.5]}
28. Qh6 {[%clk 0:00:35.8]} 28... Nd4 {[%clk 0:00:31.2]} 29. Rdxd4 {[%clk
0:00:33.6]} 29... Rc2 {[%clk 0:00:02.8]} 30. Ne3 {[%clk 0:00:04.2]} 30... Rfxf2
{[%clk 0:00:02.6]} 31. Rxe5 {[%clk 0:00:03.8]} 31... Rc1+ {[%clk 0:00:01.2]} 32.
Kxf2 {[%clk 0:00:03.7]} 1-0

[Event "Early-Titled-Tuesday-Blitz-January-16-2024"]
[Site "Chess.com"]
[Date "2024.01.16"]
[Round "8"]
[White "FairChess_on_YouTube"]
[Black "PLAYER_2006_M"]
[Result "1-0"]
[WhiteElo "3098"]
[BlackElo "2906"]
[TimeControl "180+1"]
[EndTime "9:32:49 PST"]
[Termination "FairChess_on_YouTube won by resignation"]

1. Nf3 {[%clk 0:03:00.9]} 1... Nf6 {[%clk 0:02:59.9]} 2. c4 {[%clk 0:02:57.9]}
2... e6 {[%clk 0:02:59.7]} 3. g3 {[%clk 0:02:58.2]} 3... d5 {[%clk 0:03:00]} 4.
Bg2 {[%clk 0:02:58.5]} 4... Be7 {[%clk 0:03:00.6]} 5. O-O {[%clk 0:02:58.6]}
5... O-O {[%clk 0:03:01.2]} 6. d4 {[%clk 0:02:58.7]} 6... dxc4 {[%clk
0:03:00.4]} 7. Qa4 {[%clk 0:02:54.3]} 7... a6 {[%clk 0:03:00.5]} 8. Qxc4 {[%clk
0:02:54.5]} 8... b5 {[%clk 0:03:00.9]} 9. Qc2 {[%clk 0:02:55.1]} 9... Bb7 {[%clk
0:03:01.5]} 10. Bd2 {[%clk 0:02:55.2]} 10... Be4 {[%clk 0:03:01.4]} 11. Qc1
{[%clk 0:02:55]} 11... Bb7 {[%clk 0:03:01.3]} 12. Rd1 {[%clk 0:02:53.6]} 12...
Qc8 {[%clk 0:02:29]} 13. Bg5 {[%clk 0:02:46.8]} 13... Nbd7 {[%clk 0:02:24.1]}
14. Nbd2 {[%clk 0:02:32.1]} 14... c5 {[%clk 0:02:20.8]} 15. a4 {[%clk
0:02:27.4]} 15... c4 {[%clk 0:02:17.9]} 16. Ne5 {[%clk 0:02:16.5]} 16... Bxg2
{[%clk 0:02:12.5]} 17. Kxg2 {[%clk 0:02:16.6]} 17... Nxe5 {[%clk 0:01:48]} 18.
dxe5 {[%clk 0:02:16.6]} 18... Nd5 {[%clk 0:01:46.7]} 19. Bxe7 {[%clk 0:02:13.3]}
19... Nxe7 {[%clk 0:01:46.8]} 20. Ne4 {[%clk 0:02:00.1]} 20... Qc6 {[%clk
0:01:44.6]} 21. Qe3 {[%clk 0:01:50.6]} 21... Rfd8 {[%clk 0:01:43.7]} 22. Qf3
{[%clk 0:01:44.4]} 22... h6 {[%clk 0:01:25.8]} 23. Rd6 {[%clk 0:01:39.4]} 23...
Rxd6 {[%clk 0:01:00.5]} 24. exd6 {[%clk 0:01:39.4]} 24... Nd5 {[%clk 0:01:01.1]}
25. axb5 {[%clk 0:01:37.5]} 25... axb5 {[%clk 0:01:02]} 26. Rxa8+ {[%clk
0:01:24.8]} 26... Qxa8 {[%clk 0:01:02.4]} 27. Nc5 {[%clk 0:01:18.1]} 27... Qc6
{[%clk 0:00:22.6]} 28. d7 {[%clk 0:01:15.9]} 28... Qd6 {[%clk 0:00:23.1]} 29. e4
{[%clk 0:01:11.8]} 29... Nb6 {[%clk 0:00:23.4]} 30. e5 {[%clk 0:01:09.7]} 30...
Qc7 {[%clk 0:00:20.6]} 31. Qd1 {[%clk 0:00:34]} 31... Nxd7 {[%clk 0:00:20.3]}
32. Nxd7 {[%clk 0:00:32.3]} 32... b4 {[%clk 0:00:21]} 33. Qd6 {[%clk 0:00:26.2]}
33... Qb7+ {[%clk 0:00:14.5]} 34. Kh3 {[%clk 0:00:26.5]} 34... Qf3 {[%clk
0:00:10.4]} 35. Qb8+ {[%clk 0:00:24.2]} 35... Kh7 {[%clk 0:00:08.3]} 36. Nf8+
{[%clk 0:00:24.4]} 36... Kg8 {[%clk 0:00:08.6]} 37. Nxe6+ {[%clk 0:00:22.2]}
37... Kh7 {[%clk 0:00:09.1]} 38. Nf8+ {[%clk 0:00:22.3]} 38... Kg8 {[%clk
0:00:09.4]} 39. Ng6+ {[%clk 0:00:21.7]} 39... Kh7 {[%clk 0:00:09.6]} 40. Ne7
{[%clk 0:00:22.3]} 40... h5 {[%clk 0:00:03.4]} 41. Qg8+ {[%clk 0:00:21.6]} 1-0

[Event "Early-Titled-Tuesday-Blitz-January-16-2024"]
[Site "Chess.com"]
[Date "2024.01.16"]
[Round "8"]
[White "TigrVShlyape"]
[Black "Njal28"]
[Result "0-1"]
[WhiteElo "2935"]
[BlackElo "3028"]
[TimeControl "180+1"]
[EndTime "9:32:52 PST"]
[Termination "Njal28 won on time"]

1. d4 {[%clk 0:02:58.3]} 1... Nf6 {[%clk 0:02:58.9]} 2. Bf4 {[%clk 0:02:57.4]}
2... c5 {[%clk 0:02:55.7]} 3. e3 {[%clk 0:02:56.7]} 3... e6 {[%clk 0:02:50.6]}
4. c3 {[%clk 0:02:55.8]} 4... b6 {[%clk 0:02:48.3]} 5. Nd2 {[%clk 0:02:55.6]}
5... Bb7 {[%clk 0:02:48.4]} 6. Ngf3 {[%clk 0:02:56]} 6... Nc6 {[%clk 0:02:45.6]}
7. h3 {[%clk 0:02:55.4]} 7... Be7 {[%clk 0:02:44.6]} 8. Bd3 {[%clk 0:02:54.5]}
8... O-O {[%clk 0:02:44.7]} 9. O-O {[%clk 0:02:54.8]} 9... d5 {[%clk 0:02:41.8]}
10. Ne5 {[%clk 0:02:48.1]} 10... Nd7 {[%clk 0:02:40.7]} 11. Nxc6 {[%clk
0:02:21.3]} 11... Bxc6 {[%clk 0:02:40.3]} 12. a3 {[%clk 0:02:15.8]} 12... b5
{[%clk 0:02:26.4]} 13. Re1 {[%clk 0:02:01.2]} 13... a5 {[%clk 0:02:21.3]} 14.
Qg4 {[%clk 0:01:55.5]} 14... Nf6 {[%clk 0:02:14.3]} 15. Qf3 {[%clk 0:01:44.9]}
15... b4 {[%clk 0:02:04.2]} 16. axb4 {[%clk 0:01:36.5]} 16... axb4 {[%clk
0:02:04.3]} 17. Bg5 {[%clk 0:01:29.2]} 17... Qc7 {[%clk 0:01:25]} 18. cxb4
{[%clk 0:01:06]} 18... c4 {[%clk 0:01:09.8]} 19. Bc2 {[%clk 0:01:04.3]} 19...
Qb6 {[%clk 0:00:54.3]} 20. e4 {[%clk 0:00:26.2]} 20... h6 {[%clk 0:00:53.6]} 21.
Bh4 {[%clk 0:00:16.7]} 21... Qxd4 {[%clk 0:00:51.5]} 22. Qc3 {[%clk 0:00:12.7]}
22... Qb6 {[%clk 0:00:36.5]} 23. exd5 {[%clk 0:00:12.5]} 23... Nxd5 {[%clk
0:00:31.4]} 24. Qxc4 {[%clk 0:00:11.2]} 24... Bxh4 {[%clk 0:00:19.6]} 25. Qxh4
{[%clk 0:00:11]} 25... Qxb4 {[%clk 0:00:19.6]} 26. Qe4 {[%clk 0:00:10.2]} 26...
Qxe4 {[%clk 0:00:17.5]} 27. Bxe4 {[%clk 0:00:10.5]} 27... Rab8 {[%clk
0:00:17.8]} 28. Nc4 {[%clk 0:00:10.4]} 28... Nb4 {[%clk 0:00:13.5]} 29. Bxc6
{[%clk 0:00:09.9]} 29... Nxc6 {[%clk 0:00:14.4]} 30. Ra6 {[%clk 0:00:06.2]}
30... Nb4 {[%clk 0:00:13.3]} 31. Ra7 {[%clk 0:00:06.4]} 31... Nc6 {[%clk
0:00:08.6]} 32. Ra6 {[%clk 0:00:06.3]} 32... Nd4 {[%clk 0:00:08.8]} 33. Rd6
{[%clk 0:00:05.5]} 33... Nf5 {[%clk 0:00:08.8]} 34. Rd7 {[%clk 0:00:05.1]} 34...
Rb4 {[%clk 0:00:08.4]} 35. Re4 {[%clk 0:00:03.8]} 35... h5 {[%clk 0:00:05.5]}
36. g4 {[%clk 0:00:03.7]} 36... hxg4 {[%clk 0:00:05.8]} 37. hxg4 {[%clk
0:00:04]} 37... Nh4 {[%clk 0:00:06.5]} 38. Kh2 {[%clk 0:00:04.1]} 38... Nf3+
{[%clk 0:00:05.8]} 39. Kg2 {[%clk 0:00:02.9]} 39... Ng5 {[%clk 0:00:06.7]} 40.
Red4 {[%clk 0:00:02.8]} 40... f6 {[%clk 0:00:03.6]} 41. f4 {[%clk 0:00:02.9]}
41... Nf7 {[%clk 0:00:04.4]} 42. Re7 {[%clk 0:00:02.5]} 42... e5 {[%clk
0:00:03.9]} 43. Re4 {[%clk 0:00:01.7]} 43... Rc8 {[%clk 0:00:02.9]} 0-1